bitfinex/quotes_ETHUSD_20240907
["timestamp","ask_amount","ask_price","bid_price","bid_amount"]
[1725706072110,3.74350515,2292.7,2292.6,8.90751885]
[1725706074365,7.27,2293.1,2293.0,4.36109]
[1725706074516,3.74350515,2293.2,2293.0,4.36109]
[1725706074717,3.74350515,2293.2,2293.0,4.54500842]
[1725706075434,3.74350515,2293.2,2293.0,0.18391842]
[1725706075753,4.78836067,2293.2,2293.0,0.18391842]
[1725706075917,2.3447,2293.1,2293.0,0.18391842]
[1725706076119,5.8947,2293.1,2293.0,0.18391842]
[1725706076323,5.8947,2293.1,2292.7,4.36156]
[1725706076561,3.74350515,2292.8,2292.7,4.36156]
[1725706079751,6.08820515,2292.8,2292.7,4.36156]
[1725706079936,6.69702567,2292.8,2292.7,4.36156]
[1725706080455,6.08820515,2292.8,2292.7,4.36156]
[1725706082462,6.08820515,2292.8,2292.7,4.53373442]
[1725706084040,3.9043028,2292.8,2292.7,0.17217442]
[1725706084235,3.9043028,2292.8,2292.3,4.36237]
[1725706084462,3.9043028,2292.8,2292.1,0.43495302]
[1725706084463,3.39043028,2292.7,2292.5,4.36201]
[1725706084648,3.39043028,2292.7,2292.4,4.52861811]
[1725706084961,3.39043028,2292.7,2292.5,0.16647811]
[1725706085124,1.5596028,2292.6,2292.5,0.16647811]
[1725706088583,1.5596028,2292.6,2292.5,8.89057811]
[1725706089475,1.5596028,2292.6,2292.5,10.24569692]
[1725706090363,1.5596028,2292.6,2292.5,8.89057811]
[1725706091849,1.5596028,2292.6,2292.5,0.16647811]
[1725706091850,3.8510028,2292.6,2292.5,0.16647811]
[1725706093157,3.8510028,2292.6,2292.5,4.52852811]
[1725706093492,1.5596028,2292.6,2292.5,4.52852811]
[1725706094270,1.5596028,2292.6,2292.5,0.16647811]
[1725706095048,1.5596028,2292.6,2292.5,4.52852811]
[1725706095278,1.5596028,2292.6,2292.5,0.16647811]
[1725706101961,4.53610308,2292.6,2292.5,0.16647811]
[1725706102171,14.28055461,2292.6,2292.5,0.16647811]
[1725706102470,14.28055461,2292.6,2292.5,0.15614871]
[1725706102652,14.28055461,2292.6,2292.1,4.36279]
[1725706102852,1.5596028,2292.2,2292.1,4.36279]
[1725706112203,2.2907,2292.1,2291.8,0.4378]
[1725706112408,2.2907,2292.1,2291.8,4.36338]
[1725706112409,1.5596028,2291.9,2291.8,4.36338]
[1725706112625,5.2907,2292.5,2292.2,4.36252]
[1725706112813,1.5596028,2292.3,2292.2,4.36252]
[1725706113111,1.5596028,2292.3,2292.2,4.51369479]
[1725706114544,3.0,2292.5,2292.4,4.36224]
[1725706114707,3.0,2292.6,2292.4,4.36224]
[1725706114905,3.0,2292.6,2292.5,0.14622868]
[1725706115107,5.2907,2292.7,2292.5,0.14622868]
[1725706115470,5.2907,2292.7,2292.4,4.36224]
[1725706115593,1.5596028,2292.5,2292.4,4.36224]
[1725706116719,1.5596028,2292.5,2292.4,4.50351485]
[1725706117828,2.24463308,2292.5,2292.4,0.14127485]
[1725706117995,9.44738308,2292.5,2292.4,0.14127485]
[1725706118199,5.97573028,2292.5,2292.1,4.36281]
[1725706118399,2.97573028,2292.5,2292.4,0.14115408]
[1725706118599,2.97573028,2292.5,2292.2,4.36249]
[1725706118600,5.97573028,2292.5,2292.2,4.36249]
[1725706119043,5.97573028,2292.5,2292.3,0.14123459]
[1725706119260,0.78379565,2292.4,2292.3,0.14123459]
[1725706119457,0.78379565,2292.4,2292.2,4.36249]
[1725706119458,2.34339845,2292.4,2292.2,4.36249]
[1725706119659,2.34339845,2292.4,2292.1,4.36281]
[1725706119660,2.34339845,2292.4,2292.3,0.14123459]
[1725706120046,2.34339845,2292.4,2292.1,4.36281]
[1725706120219,0.78379565,2292.4,2292.3,0.14123459]
[1725706120413,2.34339845,2292.4,2292.1,4.36281]
[1725706120616,0.78379565,2292.4,2292.3,0.14123459]
[1725706121159,0.78379565,2292.4,2292.1,4.3627]
[1725706121458,1.5596028,2292.2,2292.1,4.3627]
[1725706127669,1.5596028,2292.2,2292.1,4.50417615]
[1725706128167,4.87018545,2292.8,2292.6,4.36185]
[1725706128168,1.83260153,2292.7,2292.6,4.36185]
[1725706128375,1.5596028,2292.7,2292.6,4.36185]
[1725706128780,1.5596028,2292.7,2292.6,4.50338654]
[1725706132179,1.5596028,2292.7,2292.6,0.14153654]
[1725706135641,12.6140228,2292.7,2292.6,0.14153654]
[1725706135844,11.09355547,2292.7,2292.1,4.36278]
[1725706136072,1.5596028,2292.2,2292.1,4.36278]
[1725706142508,1.5596028,2292.2,2292.1,4.50334642]
[1725706145109,1.83340674,2292.5,2292.1,0.43876642]
[1725706145411,9.10340674,2292.8,2292.5,4.36205]
[1725706145627,1.5596028,2292.7,2292.6,4.36175]
[1725706145788,1.5596028,2292.7,2292.6,4.50218561]
[1725706146589,4.46311375,2292.7,2292.6,0.14043561]
[1725706146790,13.65818049,2292.7,2292.6,0.14043561]
[1725706146990,14.1176155,2292.7,2292.2,4.3626]
[1725706147192,1.5596028,2292.3,2292.2,4.3626]
[1725706147623,1.5596028,2292.3,2292.1,4.36266]
[1725706147930,1.5596028,2292.3,2292.0,4.36299]
[1725706148087,1.5596028,2292.1,2292.0,4.36299]
[1725706148829,1.5596028,2292.1,2291.8,4.36329]
[1725706149001,1.5596028,2291.9,2291.8,4.36329]
[1725706153247,1.5596028,2291.9,2291.8,8.72667]
[1725706156359,6.65523145,2292.4,2291.9,4.36301]
[1725706156360,1.5596028,2292.1,2291.9,4.36301]
[1725706156866,1.5596028,2292.1,2292.0,4.363]
[1725706157553,1.5596028,2292.1,2292.0,4.50385821]
[1725706158141,1.5596028,2292.1,2292.0,0.14085821]
[1725706158341,1.5596028,2292.1,2292.0,4.50385821]
[1725706159149,1.5596028,2292.2,2292.1,4.36281]
[1725706159633,1.5596028,2292.2,2292.1,8.86663921]
[1725706161787,1.5596028,2292.2,2292.1,0.14101921]
[1725706162092,2.14258344,2292.2,2292.1,0.14101921]
[1725706162389,1.5596028,2292.2,2292.1,0.14101921]
[1725706163946,1.5596028,2292.2,2292.1,4.50382921]
[1725706165159,1.5596028,2292.2,2292.1,8.86663921]
[1725706165644,4.83430362,2292.5,2292.4,4.36224]
[1725706165851,9.10430362,2292.8,2292.6,4.36185]
[1725706166144,1.5596028,2292.7,2292.5,8.724]
[1725706166348,1.5596028,2292.7,2292.6,0.14087833]
[1725706166789,1.5596028,2292.7,2292.6,4.50272833]
[1725706167485,4.5596028,2292.7,2292.6,4.50272833]
[1725706167794,4.5596028,2292.7,2292.6,8.86457833]
[1725706168188,1.5596028,2292.7,2292.6,8.86457833]
[1725706169513,1.83430362,2293.1,2293.0,4.36109]
[1725706169714,3.39390642,2293.1,2293.0,4.36109]
[1725706169922,1.5596028,2293.1,2293.0,8.86262567]
[1725706170075,1.83430362,2293.3,2293.1,4.3609]
[1725706170277,1.83430362,2293.3,2293.2,4.36071]
[1725706170514,1.83430362,2293.4,2293.3,4.36052]
[1725706170720,3.39390642,2293.4,2293.3,4.36052]
[1725706170919,1.5596028,2293.4,2293.3,4.50048278]
[1725706171102,1.5596028,2293.4,2293.3,4.36052]
[1725706171308,1.5596028,2293.4,2293.3,4.50027159]
[1725706174001,3.7411734,2293.4,2293.3,4.50027159]
[1725706174740,3.7411734,2293.4,2293.3,0.13975159]
[1725706175224,3.7411734,2293.4,2293.3,0.13950021]
[1725706175590,3.7411734,2293.4,2293.2,8.72125]
[1725706175816,3.7411734,2293.4,2293.3,0.13950021]
[1725706176134,6.53419074,2293.4,2293.3,0.13950021]
[1725706176307,6.53419074,2293.4,2293.0,4.36097]
[1725706176630,3.7411734,2293.1,2293.0,4.36097]
[1725706177922,3.73969659,2293.1,2293.0,4.36097]
[1725706180145,3.73969659,2293.1,2292.1,0.91124182]
[1725706180146,2.4189,2293.0,2292.1,0.91124182]
[1725706180306,3.7411734,2292.3,2292.1,4.36279]
[1725706181243,3.7411734,2292.3,2292.0,4.36298]
[1725706183172,3.7411734,2292.3,2291.9,4.36307]
[1725706183546,3.7411734,2292.3,2291.9,8.72616]
[1725706184395,3.7411734,2292.3,2292.0,4.36299]
[1725706185025,3.7411734,2292.3,2292.1,4.36274]
[1725706185902,3.7411734,2292.3,2292.0,4.36299]
[1725706186721,3.7411734,2292.3,2292.0,4.36289]
[1725706187262,3.7411734,2292.3,2292.0,8.72579]
[1725706187560,3.7411734,2292.3,2292.1,0.12591232]
[1725706188420,3.7411734,2292.3,2292.1,4.48866232]
[1725706189027,3.7411734,2292.3,2292.1,0.12591232]
[1725706193555,3.7411734,2292.3,2292.1,4.48871232]
[1725706195281,3.7411734,2292.3,2292.1,0.12591232]
[1725706195996,1.56037317,2292.2,2292.1,0.12591232]
[1725706197679,1.56037317,2292.2,2292.1,4.48872232]
[1725706202603,8.34675416,2292.8,2292.1,4.48872232]
[1725706202604,7.27,2292.8,2292.7,8.72332]
[1725706202846,17.47631215,2293.4,2293.0,4.36109]
[1725706202847,1.56037317,2293.1,2293.0,4.36109]
[1725706203612,1.56037317,2293.1,2293.0,8.84815338]
[1725706203828,1.56037317,2293.1,2293.0,9.73296872]
[1725706203990,4.11750362,2293.6,2293.1,4.36072]
[1725706203991,3.74151303,2293.2,2293.1,4.36072]
[1725706204191,3.74151303,2293.2,2293.1,4.48628102]
[1725706214993,5.2832,2293.6,2293.3,4.3605]
[1725706215161,3.74151303,2293.4,2293.3,4.3605]
[1725706215363,6.74151303,2293.4,2293.3,4.3605]
[1725706216487,6.74151303,2293.4,2293.2,4.36061]
[1725706216692,6.74151303,2293.4,2293.3,0.12463573]
[1725706216877,6.74151303,2293.4,2293.2,4.36061]
[1725706217106,6.74151303,2293.4,2293.3,0.1245754]
[1725706217254,6.74151303,2293.4,2293.2,4.36061]
[1725706217454,6.74151303,2293.4,2293.3,0.12458546]
[1725706217771,6.74151303,2293.4,2293.2,4.36061]
[1725706217965,6.74151303,2293.4,2293.3,0.12458546]
[1725706218395,6.74151303,2293.4,2293.2,4.36061]
[1725706218606,6.74151303,2293.4,2293.3,0.12458546]
[1725706218790,6.74151303,2293.4,2293.2,4.36061]
[1725706219108,6.74151303,2293.4,2293.3,0.12458546]
[1725706219270,6.74151303,2293.4,2293.2,4.36061]
[1725706219468,6.74151303,2293.4,2293.3,0.12458546]
[1725706219670,6.74151303,2293.4,2293.2,4.36061]
[1725706219895,6.74151303,2293.4,2293.3,0.12458546]
[1725706220501,6.74151303,2293.4,2293.2,4.36061]
[1725706220665,6.74151303,2293.4,2293.3,0.12460556]
[1725706220885,6.74151303,2293.4,2293.2,4.36061]
[1725706221088,6.74151303,2293.4,2293.3,0.12460556]
[1725706221284,6.74151303,2293.4,2293.2,4.36061]
[1725706221485,6.74151303,2293.4,2293.3,0.12460556]
[1725706221686,6.74151303,2293.4,2293.2,4.36061]
[1725706221889,6.74151303,2293.4,2293.3,0.12044936]
[1725706222128,6.74151303,2293.4,2293.2,4.36061]
[1725706222303,6.74151303,2293.4,2293.3,0.12044936]
[1725706222631,6.74151303,2293.4,2293.3,0.12036893]
[1725706222829,6.74151303,2293.4,2293.2,4.36061]
[1725706223034,6.74151303,2293.4,2293.3,0.12036893]
[1725706223217,6.74151303,2293.4,2293.2,4.36061]
[1725706223421,6.74151303,2293.4,2293.3,0.12036893]
[1725706223624,6.74151303,2293.4,2293.2,4.36061]
[1725706223933,6.74151303,2293.4,2293.3,0.12036893]
[1725706224322,6.74151303,2293.4,2293.2,4.36061]
[1725706224673,6.74151303,2293.4,2293.3,0.12036893]
[1725706224841,6.74151303,2293.4,2293.2,4.36061]
[1725706225000,6.74151303,2293.4,2293.3,0.12036893]
[1725706225336,6.74151303,2293.4,2293.2,4.36061]
[1725706225498,6.74151303,2293.4,2293.3,0.12036893]
[1725706225695,6.74151303,2293.4,2293.2,4.36061]
[1725706225898,3.0,2293.4,2293.3,0.12036893]
[1725706226147,3.0,2293.4,2293.1,4.36088]
[1725706226148,4.55900817,2293.4,2293.1,4.36088]
[1725706226433,1.55900817,2293.2,2293.1,4.36088]
[1725706231201,2.4308,2293.1,2292.8,4.36132]
[1725706231370,1.55900817,2292.9,2292.8,8.72269]
[1725706232055,1.55900817,2292.9,2292.6,4.36172]
[1725706232507,1.55900817,2292.9,2292.6,8.72347]
[1725706232691,1.55900817,2292.9,2292.7,0.16624054]
[1725706233104,1.55900817,2292.9,2292.7,4.52774054]
[1725706233818,1.55900817,2292.9,2292.8,4.36147]
[1725706234186,1.55900817,2292.9,2292.8,4.52783117]
[1725706234388,1.55900817,2292.9,2292.8,8.88930117]
[1725706234696,1.55900817,2292.9,2292.8,9.79190461]
[1725706240835,1.55900817,2292.9,2292.8,8.88930117]
[1725706243945,1.55900817,2292.9,2292.8,0.16636117]
[1725706244243,1.55900817,2292.9,2292.7,4.36162]
[1725706244450,3.98980817,2292.9,2292.8,0.16637124]
[1725706244753,3.98980817,2292.9,2292.7,4.36162]
[1725706244952,3.98980817,2292.9,2292.8,0.16637124]
[1725706245743,3.98980817,2292.9,2292.7,4.36162]
[1725706245935,3.98980817,2292.9,2292.8,0.16637124]
[1725706246242,3.98980817,2292.9,2292.7,4.36162]
[1725706246447,1.55900817,2292.9,2292.8,4.52784124]
[1725706252313,1.55900817,2292.9,2292.8,0.16637124]
[1725706252514,1.55900817,2292.9,2292.6,4.36177]
[1725706252515,2.14141935,2292.9,2292.6,4.36177]
[1725706252851,2.14141935,2292.9,2292.8,0.16656228]
[1725706252852,1.55900817,2292.9,2292.8,0.16656228]
[1725706253154,1.55900817,2292.9,2292.7,0.16656228]
[1725706253330,1.55900817,2292.9,2292.6,4.36177]
[1725706253518,1.55900817,2292.9,2292.8,0.16656228]
[1725706253714,1.55900817,2292.9,2292.6,4.36177]
[1725706253942,1.55900817,2292.9,2292.8,0.16656228]
[1725706254153,1.55900817,2292.9,2292.6,4.36177]
[1725706254360,1.83430362,2293.0,2292.8,0.16656228]
[1725706254519,1.55900817,2292.9,2292.6,4.36177]
[1725706255657,2.4676,2292.8,2292.6,4.36177]
[1725706257326,5.92067817,2292.7,2292.3,4.36231]
[1725706257632,5.92067817,2292.7,2292.2,4.36249]
[1725706257633,2.4676,2292.4,2292.2,4.36249]
[1725706257970,1.55900817,2292.3,2292.2,4.36249]
[1725706258796,1.55900817,2292.3,2292.2,8.72511]
[1725706261709,4.02660817,2292.3,2292.1,8.72551]
[1725706261909,1.55900817,2292.2,2292.1,8.72551]
[1725706262498,1.55900817,2292.2,2292.1,8.89224324]
[1725706263836,4.02660817,2292.4,2292.2,4.36251]
[1725706264404,4.02660817,2292.4,2292.3,0.16673324]
[1725706264622,7.02660817,2292.4,2292.2,4.36251]
[1725706265037,7.02660817,2292.4,2292.3,0.16673324]
[1725706265403,7.02660817,2292.4,2292.2,4.36251]
[1725706265604,7.02660817,2292.4,2292.3,0.16673324]
[1725706266077,7.02660817,2292.4,2292.2,4.36251]
[1725706266447,7.02660817,2292.4,2292.3,0.16723618]
[1725706266740,7.02660817,2292.4,2292.1,4.36271]
[1725706266903,1.55900817,2292.2,2292.1,4.36271]
[1725706271220,3.0,2292.4,2292.3,4.36243]
[1725706271422,2.492,2292.6,2292.3,4.36243]
[1725706271622,1.55900817,2292.4,2292.3,4.36243]
[1725706272321,2.26410899,2292.4,2292.1,4.3627]
[1725706272517,1.55900817,2292.2,2292.1,8.72541]
[1725706275559,4.05100817,2292.2,2292.1,4.3627]
[1725706275768,4.05100817,2292.2,2292.0,4.36299]
[1725706275972,1.55900817,2292.1,2292.0,4.36299]
[1725706277650,1.55900817,2292.1,2292.0,4.53096048]
[1725706279239,1.55900817,2292.1,2292.0,0.16797048]
[1725706279934,1.55900817,2292.1,2292.0,4.53097048]
[1725706280650,1.55900817,2292.1,2292.0,0.16797048]
[1725706280947,2.51410899,2292.1,2292.0,0.16797048]
[1725706281699,2.51410899,2292.1,2291.8,4.36336]
[1725706281898,1.55900817,2291.9,2291.8,4.36336]
[1725706284572,1.55900817,2291.9,2291.8,8.72674]
[1725706290634,7.27,2292.5,2292.4,4.36224]
[1725706290781,1.55900817,2292.7,2292.6,8.7237]
[1725706290980,19.72,2293.1,2292.7,4.36166]
[1725706290981,1.55900817,2292.9,2292.7,4.36166]
[1725706291422,1.55900817,2292.9,2292.8,8.72294]
[1725706291724,1.55900817,2292.9,2292.8,8.89038746]
[1725706292019,1.55900817,2292.9,2292.8,4.52891746]
[1725706292604,1.55900817,2292.9,2292.8,0.16744746]
[1725706293007,1.55900817,2292.9,2292.7,8.7233]
[1725706293201,1.55900817,2292.9,2292.8,0.16736701]
[1725706293591,1.55900817,2292.9,2292.7,4.36165]
[1725706293791,1.55900817,2292.9,2292.8,0.16736701]
[1725706294224,1.55900817,2292.9,2292.7,4.36157]
[1725706294413,1.55900817,2292.9,2292.8,0.16742735]
[1725706294723,1.55900817,2292.9,2292.7,4.36157]
[1725706294895,1.55900817,2292.9,2292.8,0.16742735]
[1725706295091,1.55900817,2292.9,2292.7,4.36156]
[1725706295393,1.55900817,2292.9,2292.8,0.16742735]
[1725706295811,1.55900817,2292.9,2292.7,4.36156]
[1725706296026,1.55900817,2292.9,2292.8,0.16742735]
[1725706296527,1.55900817,2292.9,2292.8,4.52889735]
[1725706297319,1.55900817,2292.9,2292.8,0.16742735]
[1725706297320,1.95954899,2292.9,2292.8,0.16742735]
[1725706297584,7.95594899,2292.9,2292.5,4.36194]
[1725706297831,1.55900817,2292.6,2292.5,4.36194]
[1725706298316,1.55900817,2292.6,2292.5,0.16678352]
[1725706298521,1.55900817,2292.6,2292.3,4.36225]
[1725706298522,2.10900817,2292.6,2292.3,4.36225]
[1725706298722,1.55900817,2292.4,2292.3,4.36225]
[1725706301531,1.55900817,2292.4,2292.3,8.72468]
[1725706302933,1.55900817,2292.4,2292.3,4.36225]
[1725706303139,1.95954899,2292.4,2292.1,4.36269]
[1725706303293,1.55900817,2292.2,2292.1,4.36269]
[1725706305844,1.55900817,2292.2,2292.1,8.7255]
[1725706306044,3.0,2292.4,2292.3,4.36243]
[1725706306245,1.55900817,2292.4,2292.3,8.72486]
[1725706307638,1.55900817,2292.4,2292.3,8.89186478]
[1725706317295,1.55900817,2292.4,2292.3,10.21732926]
[1725706317874,1.55900817,2292.4,2292.3,10.51552926]
[1725706319315,1.55900817,2292.4,2292.3,8.89186478]
[1725706322555,1.55900817,2292.4,2292.3,4.52943478]
[1725706323617,7.36161,2292.8,2292.5,4.36204]
[1725706323618,1.55900817,2292.6,2292.5,4.36204]
[1725706324017,1.55900817,2292.6,2292.5,8.89159767]
[1725706324018,4.55900817,2292.6,2292.5,8.89159767]
[1725706325548,3.0,2292.6,2292.5,8.89159767]
[1725706325755,3.0,2292.8,2292.7,4.36166]
[1725706325926,3.55,2292.8,2292.7,4.36166]
[1725706326292,3.0,2292.8,2292.7,4.36166]
[1725706326434,2.3205,2292.9,2292.7,4.52909726]
[1725706326763,1.55900817,2292.8,2292.7,4.52909726]
[1725706326952,4.55900817,2292.8,2292.7,4.52909726]
[1725706328423,1.83430362,2293.1,2293.0,4.36109]
[1725706328629,3.87950817,2293.3,2293.2,4.36071]
[1725706328850,2.3205,2293.3,2293.2,4.36071]
[1725706329125,3.87950817,2293.3,2293.2,4.52814726]
[1725706329937,9.06198963,2293.3,2293.2,4.52814726]
[1725706330153,6.06198963,2293.3,2293.2,4.52814726]
[1725706330359,3.74148963,2293.3,2293.2,4.52814726]
[1725706330558,6.06198963,2293.5,2293.4,4.36033]
[1725706330788,6.74148963,2293.5,2293.4,4.36033]
[1725706330942,6.74148963,2293.5,2293.4,4.52711359]
[1725706332483,6.74148963,2293.5,2293.4,0.16678359]
[1725706332794,6.74148963,2293.5,2293.4,4.36033]
[1725706333284,6.74148963,2293.5,2293.4,4.52711359]
[1725706335145,6.74148963,2293.5,2293.4,0.16678359]
[1725706335350,7.64768859,2293.5,2293.4,0.16678359]
[1725706335562,7.64768859,2293.5,2293.3,4.36043]
[1725706335752,3.0,2293.4,2293.3,4.36043]
[1725706335955,3.0,2293.4,2293.3,4.52721359]
[1725706336283,5.4723,2293.4,2293.3,0.16678359]
[1725706336469,6.03492697,2293.4,2293.3,0.16678359]
[1725706336778,6.03492697,2293.4,2293.3,0.16608973]
[1725706336990,6.03492697,2293.4,2293.2,4.36061]
[1725706337150,3.74148963,2293.3,2293.2,4.36061]
[1725706337584,3.74148963,2293.3,2293.2,4.52680026]
[1725706338408,3.74148963,2293.3,2293.2,0.16619026]
[1725706338409,5.19768859,2293.3,2293.2,0.16619026]
[1725706338775,5.19768859,2293.3,2293.1,4.36089]
[1725706338976,0.55,2293.2,2293.1,4.36089]
[1725706339315,3.74148963,2293.3,2293.0,4.36097]
[1725706339484,3.74148963,2293.3,2293.2,4.36071]
[1725706339688,4.29148963,2293.3,2293.2,4.36071]
[1725706340589,5.26786859,2293.3,2293.2,4.36071]
[1725706341675,4.29148963,2293.3,2293.2,4.36071]
[1725706342482,4.29148963,2293.3,2293.2,8.72142]
[1725706342483,3.74148963,2293.3,2293.2,8.72142]
[1725706346030,4.19833642,2293.3,2293.2,8.72142]
[1725706346490,0.45684679,2293.3,2293.2,13.08213]
[1725706350338,0.45684679,2293.3,2293.2,8.72142]
[1725706352040,2.0156818,2293.3,2293.2,8.72142]
[1725706352610,2.0156818,2293.3,2293.2,8.88747956]
[1725706361463,2.0156818,2293.3,2293.2,10.24214752]
[1725706376385,2.0156818,2293.3,2293.2,8.88747956]
[1725706381806,0.45684679,2293.3,2293.2,13.24818956]
[1725706382111,0.45684679,2293.3,2293.2,8.88747956]
[1725706383576,0.45684679,2293.3,2293.2,10.40663915]
[1725706384115,0.45684679,2293.3,2293.2,8.88747956]
[1725706384802,4.4598818,2293.3,2293.2,4.52676956]
[1725706387513,4.4598818,2293.3,2293.2,8.88747956]
[1725706388308,2.0156818,2293.3,2293.2,8.88747956]
[1725706388616,2.0156818,2293.3,2293.2,10.09523807]
[1725706388982,2.0156818,2293.3,2293.2,11.61445094]
[1725706389180,0.45684679,2293.3,2293.2,11.61445094]
[1725706389394,0.45684679,2293.3,2293.2,11.91265094]
[1725706389596,0.45684679,2293.3,2293.2,14.19141464]
[1725706390180,0.45684679,2293.3,2293.2,14.6009286]
[1725706390632,0.45684679,2293.3,2293.2,14.19141464]
[1725706390832,0.45684679,2293.3,2293.2,15.51215025]
[1725706391301,0.45684679,2293.3,2293.2,19.87286025]
[1725706392526,0.45684679,2293.3,2293.2,19.87289764]
[1725706392720,0.45684679,2293.3,2293.2,19.87257775]
[1725706394015,0.45684679,2293.3,2293.2,19.46304657]
[1725706394228,0.45684679,2293.3,2293.2,19.872488]
[1725706397719,0.45684679,2293.3,2293.2,19.8724658]
[1725706398609,0.45684679,2293.3,2293.2,19.87247312]
[1725706400520,0.45684679,2293.3,2293.2,19.87245335]
[1725706401334,2.81124679,2293.3,2293.2,3.96370136]
[1725706401508,3.36124679,2293.3,2293.2,0.16605956]
[1725706401714,4.36103,2293.1,2292.5,1.32102447]
[1725706401913,4.36103,2293.1,2292.4,0.40978265]
[1725706401914,1.55883501,2292.6,2292.4,0.40978265]
[1725706402110,1.55883501,2292.6,2292.5,4.36205]
[1725706402514,2.01531268,2292.6,2292.5,4.36205]
[1725706404611,2.01531268,2292.6,2292.5,8.7241]
[1725706404837,0.45647767,2292.6,2292.5,8.7241]
[1725706409505,0.45647767,2292.6,2292.5,8.86732487]
[1725706422259,2.01531268,2292.6,2292.5,8.86732487]
[1725706433000,0.45647767,2292.6,2292.5,8.86732487]
[1725706434301,0.45647767,2292.6,2292.5,9.00407244]
[1725706434508,4.43851268,2292.6,2292.5,0.27997244]
[1725706434711,4.88236395,2292.6,2292.5,0.14322487]
[1725706435467,4.88236395,2292.6,2292.5,4.50527487]
[1725706435682,4.88236395,2292.6,2292.5,4.6420283]
[1725706435683,4.42588628,2292.6,2292.5,4.6420283]
[1725706436012,4.42588628,2292.6,2292.5,4.64202714]
[1725706436196,4.42588628,2292.6,2292.5,4.64202777]
[1725706436870,3.98203501,2292.6,2292.5,4.64202777]
[1725706437073,1.55883501,2292.6,2292.5,4.64202777]
[1725706438576,1.55883501,2292.6,2292.5,4.64202855]
[1725706438772,1.55883501,2292.6,2292.5,4.64202901]
[1725706438972,1.55883501,2292.6,2292.5,4.50527487]
[1725706441813,1.55883501,2292.6,2292.5,4.64202363]
[1725706442215,1.55883501,2292.6,2292.5,4.64202719]
[1725706442390,1.55883501,2292.6,2292.5,4.50527487]
[1725706442590,1.55883501,2292.6,2292.5,4.64202737]
[1725706442784,1.55883501,2292.6,2292.5,4.64202681]
[1725706442986,4.38023851,2292.6,2292.5,0.14322487]
[1725706443190,9.29208851,2292.6,2292.5,0.14322487]
[1725706443419,2.4232,2292.5,2292.1,0.13677171]
[1725706443599,1.55883501,2292.1,2292.0,8.72577]
[1725706446114,1.55883501,2292.3,2292.2,4.36255]
[1725706448223,2.4232,2292.4,2292.2,4.36255]
[1725706448420,1.55883501,2292.3,2292.2,4.36255]
[1725706450225,2.01203851,2292.3,2292.1,8.72558]
[1725706450432,2.01203851,2292.3,2292.2,4.36262]
[1725706453428,1.55883501,2292.3,2292.2,4.36262]
[1725706456127,1.55883501,2292.3,2292.1,8.7254]
[1725706456340,1.55883501,2292.3,2292.2,4.36262]
[1725706457725,1.55883501,2292.3,2292.2,4.50299991]
[1725706460122,1.55883501,2292.3,2292.2,8.86561991]
[1725706465027,1.55883501,2292.3,2292.2,4.50299991]
[1725706465224,2.06971851,2292.3,2292.2,4.50299991]
[1725706465876,4.55581851,2292.3,2292.2,4.50299991]
[1725706466079,4.55581851,2292.3,2292.2,0.14037991]
[1725706467778,4.55581851,2292.3,2292.2,4.50299991]
[1725706469744,5.10581851,2292.3,2292.2,4.50299991]
[1725706471376,4.55581851,2292.3,2292.2,4.50299991]
[1725706472266,5.10581851,2292.3,2292.2,4.50299991]
[1725706473087,5.10581851,2292.3,2292.2,0.14037991]
[1725706477856,5.10581851,2292.3,2292.2,0.13931985]
[1725706478485,5.10581851,2292.3,2292.2,4.50193985]
[1725706478693,2.61971851,2292.3,2292.2,4.50193985]
[1725706478899,2.10883501,2292.3,2292.2,4.50193985]
[1725706480197,4.45843501,2292.3,2292.2,0.13931985]
[1725706480612,4.45843501,2292.3,2291.9,4.36317]
[1725706480906,1.55883501,2292.0,2291.9,4.36317]
[1725706482607,3.90843501,2292.0,2291.9,4.36317]
[1725706482914,6.71283,2291.9,2291.5,2.2803018]
[1725706483080,6.71283,2291.9,2291.3,1.36686273]
[1725706483081,2.3496,2291.5,2291.3,4.36423]
[1725706483284,1.55883501,2291.4,2291.3,4.36423]
[1725706483677,1.55883501,2291.4,2291.0,2.57904322]
[1725706483678,4.29927851,2291.4,2291.0,4.36487]
[1725706483879,1.55883501,2291.1,2291.0,9.14024475]
[1725706484150,1.55883501,2291.1,2291.0,8.72977]
[1725706485583,1.55883501,2291.1,2291.0,8.86565275]
[1725706487271,1.55883501,2291.1,2291.0,8.16565275]
[1725706495248,2.2548,2291.6,2291.5,4.36394]
[1725706495464,5.39063501,2291.6,2291.5,4.36394]
[1725706495668,8.39063501,2291.6,2291.5,4.50075278]
[1725706498429,8.39063501,2291.6,2291.5,0.13681278]
[1725706498955,8.39063501,2291.6,2291.4,4.36413]
[1725706499133,3.99182593,2291.5,2291.4,4.36413]
[1725706501152,3.99182593,2291.5,2291.4,4.50094278]
[1725706503518,3.55,2291.5,2291.4,4.50094278]
[1725706508960,3.55,2291.5,2291.4,0.13681278]
[1725706509487,14.5327,2291.5,2291.4,0.13681278]
[1725706509829,4.36444,2291.3,2290.8,4.3651]
[1725706510074,1.55883501,2291.0,2290.8,4.3651]
[1725706510282,1.55883501,2291.0,2290.9,0.13756277]
[1725706510482,2.10883501,2291.0,2290.9,0.13756277]
[1725706510770,2.10883501,2291.0,2290.8,4.3651]
[1725706511175,2.2548,2291.1,2290.8,4.3651]
[1725706511482,2.4777,2291.3,2291.0,4.3649]
[1725706511639,0.55,2291.2,2291.0,4.36482]
[1725706511981,0.55,2291.2,2291.1,0.13756277]
[1725706512148,0.55,2291.2,2291.1,4.50227277]
[1725706512854,5.4777,2291.5,2291.1,0.13756277]
[1725706513057,3.0,2291.6,2291.4,4.36399]
[1725706513259,1.55883501,2291.6,2291.5,4.36395]
[1725706513647,1.55883501,2291.6,2291.5,8.8655428]
[1725706514580,8.40029501,2291.6,2291.5,0.1376428]
[1725706514784,2.4777,2291.3,2290.9,4.36509]
[1725706514971,1.55883501,2291.0,2290.9,4.36509]
[1725706515499,2.10883501,2291.0,2290.9,4.36509]
[1725706516171,2.56589422,2291.0,2290.9,4.36509]
[1725706516375,5.56589422,2291.0,2290.9,4.36509]
[1725706517786,5.56589422,2291.0,2290.9,4.49803466]
[1725706519928,5.56589422,2291.0,2290.9,0.13294466]
[1725706520226,5.56589422,2291.0,2290.8,4.36518]
[1725706520527,3.0,2290.9,2290.8,4.36518]
[1725706524451,3.62879643,2290.9,2290.5,4.36572]
[1725706524655,2.10883501,2290.8,2290.6,4.36564]
[1725706527185,2.10883501,2290.8,2290.7,4.36547]
[1725706529655,2.10883501,2290.8,2290.6,4.36566]
[1725706529857,2.10883501,2290.8,2290.6,4.36557]